fUSD/lending_fUSD_20250112
["ID","MTS","AMOUNT","RATE_DAILY","PERIOD"]
[348651633,1736699439832,-500.0,9.798e-05,2]
[348651635,1736699439841,-500.0,9.798e-05,2]
[348651637,1736699439851,-500.0,9.798e-05,2]
[348651639,1736699439860,-500.0,9.798e-05,2]
[348651641,1736699439870,-500.0,9.798e-05,2]
[348651643,1736699439878,-505.15450601,9.798e-05,2]
[348651644,1736699439888,-500.0,9.798e-05,2]
[348651646,1736699439897,-500.0,9.798e-05,2]
[348651648,1736699439907,-500.0,9.798e-05,2]
[348651650,1736699439917,-500.0,9.798e-05,2]
[348651652,1736699439926,-500.0,9.798e-05,2]
[348651654,1736699439936,-500.0,9.798e-05,2]
[348651657,1736699439945,-500.0,9.798e-05,2]
[348651659,1736699439954,-500.0,9.798e-05,2]
[348651661,1736699439963,-549.03,9.798e-05,2]
[348651663,1736699439972,-500.0,9.798e-05,2]
[348651665,1736699439982,-500.0,9.798e-05,2]
[348651667,1736699439991,-500.0,9.798e-05,2]
[348651670,1736699440001,-500.0,9.798e-05,2]
[348651672,1736699440010,-973.13,9.798e-05,2]
[348651674,1736699440019,-1364.62,9.798e-05,2]
[348651676,1736699440028,-925.07,9.798e-05,2]
[348651678,1736699440038,-3144.77,9.798e-05,2]
[348651680,1736699440047,-1041.89,9.798e-05,2]
[348651681,1736699440057,-2015.67,9.798e-05,2]
[348651684,1736699440067,-1197.96,9.798e-05,2]
[348651686,1736699440076,-1454.44,9.798e-05,2]
[348651687,1736699440086,-500.0,9.798e-05,2]
[348651689,1736699440096,-932.77,9.798e-05,2]
[348651691,1736699440106,-2213.41,9.798e-05,2]
[348651693,1736699440116,-818.36,9.798e-05,2]
[348651695,1736699440126,-1034.46,9.798e-05,2]
[348651697,1736699440136,-657.66,9.799e-05,2]
[348651699,1736699440145,-500.0,9.799e-05,2]
[348651701,1736699440155,-705.56,9.799e-05,2]
[348651703,1736699440167,-1307.99,9.799e-05,2]
[348651705,1736699440177,-1006.99,9.799e-05,2]
[348651707,1736699440186,-1789.35,9.799e-05,2]
[348651709,1736699440196,-3513.14,9.799e-05,2]
[348651711,1736699440206,-779.28,9.799e-05,2]
[348651713,1736699440216,-536.0,9.799e-05,2]
[348651715,1736699440226,-665.58,9.799e-05,2]
[348651717,1736699440235,-570.04,9.799e-05,2]
[348651719,1736699440245,-1505.25,9.799e-05,2]
[348651721,1736699440254,-500.0,9.799e-05,2]
[348651723,1736699440263,-941.29,9.799e-05,2]
[348651725,1736699440272,-1739.42,9.799e-05,2]
[348651727,1736699440282,-500.0,9.799e-05,2]
[348651729,1736699440291,-500.0,9.799e-05,2]
[348651731,1736699440300,-1000.0,9.799e-05,2]
[348651733,1736699440310,-811.37,9.799e-05,2]
[348651735,1736699440320,-500.0,9.799e-05,2]
[348651736,1736699440329,-2195.66,9.799e-05,2]
[348651738,1736699440338,-1934.04,9.799e-05,2]
[348651740,1736699440347,-500.0,9.821e-05,2]
[348651742,1736699440357,-500.0,9.821e-05,2]
[348651744,1736699440366,-500.0,9.821e-05,2]
[348651746,1736699440375,-808.49,9.821e-05,2]
[348651748,1736699440384,-284.04709395,9.821e-05,2]
[348651750,1736699440394,-900.33,9.821e-05,2]
[348651752,1736699440403,-503.58333237,9.821e-05,2]
[348651754,1736699440413,-500.0,9.821e-05,2]
[348651756,1736699440422,-1061.29224117,9.86e-05,3]
[348651758,1736699440431,-500.0,9.861e-05,2]
[348651760,1736699440440,-500.0,9.861e-05,2]
[348651761,1736699440449,-778.25,9.861e-05,2]
[348651763,1736699440459,-585.78,9.861e-05,2]
[348651765,1736699440468,-255.0,9.899e-05,2]
[348651767,1736699440477,-155.53247878,9.9e-05,2]
[348651769,1736699440487,-155.5324787,9.9e-05,2]
[348651771,1736699440496,-155.5324787,9.9e-05,2]
[348651773,1736699440505,-155.5324787,9.9e-05,2]
[348651775,1736699440514,-155.5324787,9.9e-05,2]
[348651777,1736699440524,-155.5324787,9.9e-05,2]
[348651779,1736699440533,-155.5324787,9.9e-05,2]
[348651781,1736699440542,-155.5324787,9.9e-05,2]
[348651783,1736699440552,-155.5324787,9.9e-05,2]
[348651785,1736699440561,-155.5324787,9.9e-05,2]
[348651787,1736699440570,-155.5324787,9.9e-05,2]
[348651789,1736699440579,-155.5324787,9.9e-05,2]
[348651791,1736699440588,-155.5324787,9.9e-05,2]
[348651793,1736699440598,-155.5324787,9.9e-05,2]
[348651795,1736699440607,-1657.88700681,9.921e-05,2]
[348651797,1736699440616,-500.0,9.963e-05,2]
[348651798,1736699440625,-8458.89119741,9.97e-05,2]
[348651800,1736699440634,-1002.94765454,9.97e-05,3]
[348651803,1736699440644,-333.33333333,9.971e-05,2]
[348651804,1736699440653,-2657.87133461,9.971e-05,2]
[348651806,1736699440665,-1000.0,9.971e-05,2]
[348651808,1736699440674,-5297.1459355,9.971e-05,2]
[348651810,1736699440689,-8458.89119741,9.972e-05,2]
[348651812,1736699440699,-3610.0,9.973e-05,2]
[348651814,1736699440709,-45217.0,9.973e-05,2]
[348651816,1736699440718,-500.0,9.973e-05,2]
[348651818,1736699440729,-299.65499888,9.973e-05,2]
[348651820,1736699440739,-21667.47563322,9.973e-05,2]
[348651822,1736699440748,-333.33333333,9.973e-05,2]
[348651824,1736699440758,-333.33333333,9.973e-05,2]
[348651826,1736699440769,-2657.87133461,9.974e-05,2]
[348651828,1736699440779,-926.00005,9.975e-05,2]
[348651830,1736699440788,-5297.1459355,9.975e-05,2]
[348651832,1736699440798,-113901.40284759,9.977e-05,2]
[348651834,1736699440807,-8458.89119741,9.977e-05,2]
[348651836,1736699440817,-98865.71142835,9.977e-05,2]
[348651838,1736699440827,-21667.47563322,9.977e-05,2]
[348651840,1736699440836,-333.33333333,9.977e-05,2]
[348651842,1736699440845,-8458.89119741,9.978e-05,2]
[348651844,1736699440854,-2657.87133461,9.978e-05,2]
[348651846,1736699440863,-21667.47563322,9.979e-05,2]
[348651848,1736699440873,-98865.71142835,9.98e-05,2]
[348651850,1736699440882,-113901.40284759,9.98e-05,2]
[348651852,1736699440891,-58420.41594809,9.98e-05,2]
[348651853,1736699440900,-8458.89119741,9.98e-05,2]
[348651855,1736699440910,-5297.1459355,9.981e-05,2]
[348651857,1736699440919,-8458.89119741,9.982e-05,2]
[348651859,1736699440929,-113901.40284759,9.982e-05,2]
[348651861,1736699440938,-21667.47563322,9.984e-05,2]
[348651863,1736699440948,-98865.71142835,9.984e-05,2]
[348651865,1736699440957,-5297.1459355,9.985e-05,2]
[348651867,1736699440967,-98865.71142835,9.985e-05,2]
[348651869,1736699440976,-21667.47563322,9.986e-05,2]
[348651871,1736699440986,-98865.71142835,9.986e-05,2]
[348651873,1736699440995,-333.33333333,9.987e-05,2]
[348651875,1736699441004,-53334.39600051,9.988e-05,2]
[348651877,1736699441013,-21667.47563322,9.99e-05,2]
[348651879,1736699441022,-2657.87133461,9.99e-05,2]
[348651881,1736699441032,-333.33333333,9.992e-05,2]
[348651883,1736699441041,-98865.71142835,9.993e-05,2]
[348651885,1736699441050,-2657.87133461,9.993e-05,2]
[348651887,1736699441059,-5297.1459355,9.994e-05,2]
[348651889,1736699441068,-113901.40284759,9.994e-05,2]
[348651891,1736699441077,-113901.40284759,9.995e-05,2]
[348651893,1736699441086,-2657.87133461,9.996e-05,2]
[348651895,1736699441096,-5297.1459355,9.996e-05,2]
[348651897,1736699441104,-500.0,9.997e-05,2]
[348651899,1736699441113,-1774.74,9.997e-05,2]
[348651901,1736699441122,-2625.24,9.997e-05,2]
[348651902,1736699441131,-1727.74,9.997e-05,2]
[348651904,1736699441140,-500.0,9.997e-05,2]
[348651906,1736699441149,-1077.0,9.997e-05,2]
[348651908,1736699441158,-1061.29224117,9.997e-05,3]
[348651910,1736699441167,-1061.29224117,9.997e-05,3]
[348651912,1736699441176,-2536.45,9.997e-05,2]
[348651914,1736699441186,-500.0,9.997e-05,2]
[348651916,1736699441195,-510.73718507,9.997e-05,2]
[348651918,1736699441204,-1044.59,9.997e-05,2]
[348651920,1736699441213,-500.0,9.997e-05,2]
[348651922,1736699441222,-502.92,9.997e-05,2]
[348651924,1736699441231,-578.96,9.997e-05,2]
[348651926,1736699441241,-943.76,9.997e-05,2]
[348651928,1736699441250,-2292758.94462876,9.998e-05,2]
[348651930,1736699441259,-1061.29224117,9.999e-05,3]
[348651931,1736699441268,-1061.29224117,9.999e-05,3]
[348651933,1736699441277,-1061.29224119,9.999e-05,3]
[348651935,1736699441286,-27528.02315732,9.999e-05,2]
[348651936,1736699441295,-113901.40284759,9.999e-05,2]
[348651937,1736699441304,-27528.0231573,0.0001,2]
[348651938,1736699441313,-200.0,0.0001,2]
[348651939,1736699441322,-230.78,0.0001,2]
[348651940,1736699441331,-500.0,0.0001,2]
[348651941,1736699441340,-171.73,0.0001,2]
[348651942,1736699441349,-6748373.80664622,0.0001,2]
[348651944,1736699441359,-331.62505289,0.0001,2]
[348651946,1736699441367,-7312.62577763,0.0001,2]
[348651948,1736699441376,-1063.73023901,0.0001,2]
[348651949,1736699441386,-653.73425882,0.0001,2]
[348651951,1736699441394,-15012804.34586987,0.0001,2]
[348651954,1736699441409,-1016.0573629,0.0001,2]
[348651958,1736699441439,-28686.14948061,0.0001,2]
[348651982,1736699441756,-379.2789001,8.999e-05,2]
[348651984,1736699441769,-120.7210999,8.999e-05,2]
[348651986,1736699441781,-500.0,8.999e-05,2]
[348651988,1736699441789,-592.62331865,8.999e-05,2]
[348651990,1736699441798,-500.0,9.273e-05,2]
[348651992,1736699441807,-500.0,9.273e-05,2]
[348651994,1736699441818,-500.0,9.547e-05,2]
[348651996,1736699441828,-500.0,9.547e-05,2]
[348651998,1736699441837,-474.63972652,9.821e-05,2]
[348652000,1736699441846,-500.0,9.821e-05,2]
[348652002,1736699441856,-155.5324787,9.941e-05,2]
[348652004,1736699441866,-90274.56964351,0.0001,2]
[348652030,1736699442101,-3819944.06193017,0.0001,2]
[348652033,1736699442111,-2857308.45685394,0.0001,2]
[348652060,1736699442364,-6685.92315262,0.0001,2]
[348652064,1736699442391,-500.0,9.797e-05,2]
[348652066,1736699442399,-390.32603996,0.0001,2]
[348652069,1736699442410,-1257.67426355,0.0001,2]
[348652072,1736699442429,-417.76166719,0.0001,2]
[348652182,1736699443374,-500.0,8.999e-05,2]
[348652184,1736699443384,-349.413,8.999e-05,2]
[348652186,1736699443395,-150.587,8.999e-05,2]
[348652188,1736699443405,-500.0,8.999e-05,2]
[348652190,1736699443415,-502.94864218,8.999e-05,2]
[348652192,1736699443425,-30.6243542,9.273e-05,2]
[348652214,1736699443621,-469.3756458,9.273e-05,2]
[348652216,1736699443630,-375.40161466,9.273e-05,2]
[348652218,1736699443639,-500.0,9.273e-05,2]
[348652220,1736699443648,-500.0,9.547e-05,2]
[348652222,1736699443657,-500.0,9.547e-05,2]
[348652224,1736699443667,-500.0,9.798e-05,2]
[348652227,1736699443676,-500.0,9.821e-05,2]
[348652228,1736699443690,-500.0,9.975e-05,2]
[348652230,1736699443699,-500.0,9.975e-05,2]
[348652232,1736699443708,-500.0,9.975e-05,2]
[348652235,1736699443717,-500.0,9.976e-05,2]
[348652237,1736699443727,-3000.61784144,0.0001,2]
[348652240,1736699443738,-251296.82191087,0.0001,2]
[348652241,1736699443747,-27528.0231573,0.0001,2]
[348652243,1736699443757,-1098.61790739,0.0001,2]
[348652245,1736699443766,-1098.61790739,0.0001,2]
[348652247,1736699443776,-1098.61790739,0.0001,2]
[348652249,1736699443785,-1657.88700706,0.0001,2]
[348652251,1736699443794,-1657.88700681,0.0001,2]
[348652253,1736699443804,-1657.88700681,0.00010031,2]
[348652255,1736699443813,-716.08,0.0001007,2]
[348652258,1736699443824,-576.93,0.0001007,2]
[348652260,1736699443833,-1006.35,0.0001007,2]
[348652262,1736699443842,-1899.01,0.0001007,2]
[348652263,1736699443852,-783.3,0.0001007,2]
[348652265,1736699443861,-755.32,0.0001007,2]
[348652268,1736699443871,-1736.88,0.0001007,2]
[348652270,1736699443880,-5605.87,0.0001007,2]
[348652271,1736699443890,-590.4,0.0001007,2]
[348652274,1736699443899,-658.0,0.0001007,2]
[348652276,1736699443909,-931.95,0.0001007,2]
[348652278,1736699443919,-1262.0,0.0001007,2]
[348652280,1736699443929,-1681.3,0.0001007,2]
[348652282,1736699443938,-500.0,0.0001007,2]
[348652283,1736699443947,-2219.24,0.0001007,2]
[348652284,1736699443957,-2064.35,0.0001007,2]
[348652285,1736699443966,-1062.1,0.0001007,2]
[348652286,1736699443975,-1378.71,0.0001007,2]
[348652287,1736699443985,-730.92,0.0001007,2]
[348652288,1736699443995,-1839.64,0.0001007,2]
[348652289,1736699444005,-1154.1,0.0001007,2]
[348652290,1736699444014,-1452.82,0.0001007,2]
[348652291,1736699444024,-598.938099,0.0001007,2]
[348652293,1736699444033,-501.70798032,0.0001007,2]
[348652295,1736699444043,-500.0,0.0001007,2]
[348652297,1736699444053,-500.0,0.0001007,2]
[348652299,1736699444062,-377.67556981,0.0001007,2]
[348652301,1736699444072,-500.0,0.0001007,2]
[348652303,1736699444081,-3375.84,0.0001007,2]
[348652305,1736699444091,-500.0,0.0001007,2]
[348652307,1736699444101,-875.294878,0.0001007,2]
[348652309,1736699444110,-1458.52,0.0001007,2]
[348652311,1736699444120,-159.639458,0.0001007,2]
[348652313,1736699444129,-157.295643,0.0001007,2]
[348652315,1736699444138,-237.43690808,0.0001007,2]
[348652317,1736699444148,-500.0,0.0001007,2]
[348652319,1736699444158,-533.10768742,0.0001007,2]
[348652320,1736699444168,-500.0,0.00010071,2]
[348652322,1736699444177,-500.0,0.00010071,2]
[348652324,1736699444187,-500.0,0.00010071,2]
[348652327,1736699444196,-500.0,0.00010071,2]
[348652329,1736699444206,-500.0,0.00010071,2]
[348652331,1736699444216,-500.0,0.00010071,2]
[348652333,1736699444225,-500.0,0.00010071,2]
[348652334,1736699444235,-500.0,0.00010071,2]
[348652336,1736699444244,-509.14,0.00010071,2]
[348652339,1736699444254,-500.0,0.00010071,2]
[348652341,1736699444265,-500.0,0.00010071,2]
[348652343,1736699444275,-610.17958096,0.00010071,2]
[348652345,1736699444284,-500.0,0.00010071,2]
[348652347,1736699444293,-500.0,0.00010071,2]
[348652349,1736699444304,-500.0,0.00010071,2]
[348652351,1736699444313,-500.0,0.00010071,2]
[348652353,1736699444322,-500.0,0.00010071,2]
[348652355,1736699444332,-660.3,0.00010071,2]
[348652357,1736699444343,-500.0,0.00010071,2]
[348652359,1736699444352,-500.0,0.00010071,2]
[348652361,1736699444361,-500.0,0.00010071,2]
[348652363,1736699444369,-500.0,0.00010071,2]
[348652365,1736699444379,-525.43,0.00010071,2]
[348652366,1736699444388,-500.0,0.00010071,2]
[348652368,1736699444397,-500.0,0.00010071,2]
[348652371,1736699444407,-500.0,0.00010071,2]
[348652375,1736699444417,-500.0,0.00010071,2]
[348652377,1736699444427,-500.0,0.00010071,2]
[348652378,1736699444435,-500.0,0.00010071,2]
[348652380,1736699444445,-500.0,0.00010071,2]
[348652383,1736699444455,-500.0,0.00010071,2]
[348652385,1736699444464,-500.0,0.00010071,2]
[348652386,1736699444473,-500.0,0.00010071,2]
[348652388,1736699444483,-500.0,0.00010071,2]
[348652390,1736699444492,-500.0,0.00010071,2]
[348652393,1736699444501,-500.0,0.00010071,2]
[348652395,1736699444511,-500.0,0.00010071,2]
[348652397,1736699444520,-500.0,0.00010071,2]
[348652398,1736699444529,-501.63,0.00010071,2]
[348652400,1736699444539,-500.0,0.00010071,2]
[348652402,1736699444548,-500.0,0.00010071,2]
[348652404,1736699444558,-502.9,0.00010071,2]
[348652406,1736699444567,-500.0,0.00010071,2]
[348652408,1736699444576,-500.0,0.00010071,2]
[348652410,1736699444586,-500.0,0.00010071,2]
[348652412,1736699444595,-500.0,0.00010071,2]
[348652414,1736699444604,-571.61249942,0.00010071,2]
[348652416,1736699444613,-500.0,0.00010071,2]
[348652418,1736699444623,-500.0,0.00010071,2]
[348652420,1736699444632,-500.0,0.00010071,2]
[348652423,1736699444642,-500.0,0.00010071,2]
[348652424,1736699444651,-500.0,0.00010071,2]
[348652426,1736699444660,-500.0,0.00010071,2]
[348652428,1736699444671,-564.22,0.00010071,2]
[348652430,1736699444682,-500.0,0.00010071,2]
[348652432,1736699444695,-500.0,0.00010071,2]
[348652435,1736699444705,-591.03,0.00010071,2]
[348652436,1736699444714,-500.0,0.00010071,2]
[348652439,1736699444724,-500.0,0.00010071,2]
[348652441,1736699444734,-500.0,0.00010071,2]
[348652442,1736699444743,-500.0,0.00010071,2]
[348652444,1736699444753,-500.0,0.00010071,2]
[348652446,1736699444762,-500.0,0.00010071,2]
[348652448,1736699444771,-500.0,0.00010071,2]
[348652450,1736699444781,-529.3,0.00010071,2]
[348652452,1736699444790,-500.0,0.00010071,2]
[348652454,1736699444799,-500.0,0.00010071,2]
[348652456,1736699444809,-500.0,0.00010071,2]
[348652458,1736699444818,-566.22,0.00010071,2]
[348652460,1736699444828,-500.0,0.00010071,2]
[348652462,1736699444837,-500.0,0.00010071,2]
[348652464,1736699444846,-500.0,0.00010071,2]
[348652466,1736699444856,-648.48,0.00010071,2]
[348652468,1736699444865,-500.0,0.00010071,2]
[348652470,1736699444874,-500.0,0.00010071,2]
[348652472,1736699444883,-551.25,0.00010071,2]
[348652474,1736699444892,-500.0,0.00010071,2]
[348652476,1736699444901,-500.0,0.00010071,2]
[348652477,1736699444910,-500.0,0.00010071,2]
[348652478,1736699444922,-500.0,0.00010071,2]
[348652479,1736699444931,-500.0,0.00010071,2]
[348652480,1736699444941,-598.89,0.00010071,2]
[348652481,1736699444950,-784.77,0.00010071,2]
[348652482,1736699444959,-500.0,0.00010071,2]
[348652483,1736699444969,-640.67,0.00010071,2]
[348652484,1736699444978,-500.0,0.00010071,2]
[348652486,1736699444988,-604.17,0.00010071,2]
[348652488,1736699444997,-500.0,0.00010071,2]
[348652490,1736699445007,-500.0,0.00010071,2]
[348652492,1736699445017,-500.0,0.00010071,2]
[348652494,1736699445027,-500.0,0.00010071,2]
[348652496,1736699445036,-500.0,0.00010071,2]
[348652498,1736699445046,-500.0,0.00010071,2]
[348652499,1736699445056,-556.65,0.00010071,2]
[348652500,1736699445065,-500.0,0.00010071,2]
[348652501,1736699445075,-513.2,0.00010071,2]
[348652502,1736699445085,-500.0,0.00010071,2]
[348652503,1736699445094,-500.0,0.00010071,2]
[348652504,1736699445104,-500.0,0.00010071,2]
[348652505,1736699445114,-565.97,0.00010071,2]
[348652506,1736699445124,-500.0,0.00010071,2]
[348652507,1736699445134,-554.7,0.00010071,2]
[348652508,1736699445144,-500.0,0.00010071,2]
[348652509,1736699445154,-500.0,0.00010071,2]
[348652510,1736699445165,-500.0,0.00010071,2]
[348652511,1736699445175,-500.0,0.00010071,2]
[348652512,1736699445184,-512.3,0.00010071,2]
[348652513,1736699445194,-500.0,0.00010071,2]
[348652514,1736699445203,-500.0,0.00010071,2]
[348652515,1736699445212,-518.24,0.00010071,2]
[348652516,1736699445222,-500.0,0.00010071,2]
[348652517,1736699445231,-500.0,0.00010071,2]
[348652518,1736699445240,-500.0,0.00010071,2]
[348652519,1736699445250,-506.37325306,0.00010071,2]
[348652520,1736699445259,-500.0,0.00010071,2]
[348652521,1736699445269,-613.02,0.00010071,2]
[348652522,1736699445278,-500.0,0.00010071,2]
[348652523,1736699445288,-500.0,0.00010071,2]
[348652524,1736699445297,-566.44,0.00010071,2]
[348652525,1736699445307,-500.0,0.00010071,2]
[348652526,1736699445316,-500.0,0.00010071,2]
[348652527,1736699445325,-654.62,0.00010071,2]
[348652528,1736699445334,-657.29,0.00010071,2]
[348652529,1736699445343,-500.0,0.00010071,2]
[348652530,1736699445352,-500.0,0.00010071,2]
[348652531,1736699445361,-639.39,0.00010071,2]
[348652532,1736699445371,-500.0,0.00010071,2]
[348652533,1736699445380,-3340.68,0.00010071,2]
[348652534,1736699445389,-500.0,0.00010071,2]
[348652535,1736699445399,-500.0,0.00010071,2]
[348652536,1736699445408,-693.04,0.00010071,2]
[348652537,1736699445417,-643.52,0.00010071,2]
[348652538,1736699445427,-583.35,0.00010071,2]
[348652539,1736699445436,-500.0,0.00010071,2]
[348652540,1736699445444,-2433.16,0.00010071,2]
[348652541,1736699445454,-500.0,0.00010071,2]
[348652542,1736699445463,-500.0,0.00010071,2]
[348652543,1736699445472,-2346.85,0.00010071,2]
[348652544,1736699445481,-500.0,0.00010071,2]
[348652545,1736699445490,-692.94,0.00010071,2]
[348652546,1736699445500,-633.61,0.00010071,2]
[348652547,1736699445509,-672.71,0.00010071,2]
[348652548,1736699445518,-2492.75,0.00010071,2]
[348652549,1736699445527,-500.0,0.00010071,2]
[348652550,1736699445536,-500.0,0.00010071,2]
[348652551,1736699445547,-514.5,0.00010071,2]
[348652552,1736699445556,-555.89,0.00010071,2]
[348652553,1736699445566,-500.0,0.00010071,2]
[348652554,1736699445576,-500.0,0.00010071,2]
[348652555,1736699445586,-1207.03,0.00010071,2]
[348652556,1736699445595,-500.0,0.00010071,2]
[348652557,1736699445604,-650.01,0.00010071,2]
[348652558,1736699445614,-500.0,0.00010071,2]
[348652559,1736699445624,-500.0,0.00010071,2]
[348652560,1736699445633,-707.45,0.00010071,2]
[348652561,1736699445643,-694.57,0.00010071,2]
[348652562,1736699445652,-926.05,0.00010071,2]
[348652563,1736699445662,-954.19,0.00010071,2]
[348652564,1736699445672,-633.58,0.00010071,2]
[348652565,1736699445682,-500.0,0.00010071,2]
[348652566,1736699445694,-598.71,0.00010071,2]
[348652567,1736699445703,-500.0,0.00010071,2]
[348652568,1736699445712,-884.06,0.00010071,2]
[348652569,1736699445723,-500.0,0.00010071,2]
[348652570,1736699445732,-1133.37,0.00010071,2]
[348652571,1736699445742,-500.0,0.00010071,2]
[348652572,1736699445751,-500.0,0.00010071,2]
[348652573,1736699445761,-984.84,0.00010071,2]
[348652574,1736699445770,-516.72,0.00010071,2]
[348652575,1736699445779,-608.56,0.00010071,2]
[348652576,1736699445790,-500.0,0.00010071,2]
[348652577,1736699445799,-500.0,0.00010071,2]
[348652578,1736699445808,-602.82,0.00010071,2]
[348652579,1736699445818,-500.0,0.00010071,2]
[348652580,1736699445828,-1288.71,0.00010071,2]
[348652581,1736699445838,-500.0,0.00010071,2]
[348652582,1736699445847,-500.0,0.00010071,2]
[348652583,1736699445856,-500.0,0.00010071,2]
[348652584,1736699445866,-500.0,0.00010071,2]
[348652585,1736699445876,-500.0,0.00010072,2]
[348652586,1736699445885,-500.0,0.00010072,2]
[348652587,1736699445895,-500.0,0.00010072,2]
[348652588,1736699445904,-511.45875366,0.00010072,2]
[348652589,1736699445913,-500.0,0.00010072,2]
[348652590,1736699445924,-500.0,0.00010072,2]
[348652592,1736699445933,-500.0,0.00010072,2]
[348652593,1736699445942,-500.0,0.00010072,2]
[348652594,1736699445951,-500.0,0.00010072,2]
[348652595,1736699445960,-500.0,0.00010072,2]
[348652596,1736699445969,-549.03,0.00010072,2]
[348652597,1736699445979,-500.0,0.00010072,2]
[348652599,1736699445988,-500.0,0.00010072,2]
[348652600,1736699445997,-500.0,0.00010072,2]
[348652601,1736699446006,-973.13,0.00010072,2]
[348652602,1736699446015,-925.07,0.00010072,2]
[348652603,1736699446025,-3144.77,0.00010072,2]
[348652604,1736699446035,-1041.89,0.00010072,2]
[348652605,1736699446044,-2015.67,0.00010072,2]
[348652606,1736699446054,-1197.96,0.00010072,2]
[348652607,1736699446064,-1454.44,0.00010072,2]
[348652608,1736699446073,-500.0,0.00010072,2]
[348652609,1736699446083,-932.77,0.00010072,2]
[348652610,1736699446092,-2213.41,0.00010072,2]
[348652611,1736699446101,-818.36,0.00010072,2]
[348652612,1736699446110,-1034.46,0.00010072,2]
[348652613,1736699446119,-657.66,0.00010073,2]
[348652614,1736699446128,-500.0,0.00010073,2]
[348652615,1736699446137,-705.56,0.00010073,2]
[348652616,1736699446146,-1307.99,0.00010073,2]
[348652617,1736699446156,-1006.99,0.00010073,2]
[348652618,1736699446166,-1789.35,0.00010073,2]
[348652619,1736699446175,-3513.14,0.00010073,2]
[348652620,1736699446184,-779.28,0.00010073,2]
[348652621,1736699446194,-536.0,0.00010073,2]
[348652622,1736699446203,-665.58,0.00010073,2]
[348652623,1736699446213,-570.04,0.00010073,2]
[348652624,1736699446222,-1505.25,0.00010073,2]
[348652625,1736699446231,-500.0,0.00010073,2]
[348652626,1736699446241,-941.29,0.00010073,2]
[348652627,1736699446251,-1739.42,0.00010073,2]
[348652628,1736699446261,-500.0,0.00010073,2]
[348652629,1736699446270,-513.07956152,0.00010073,2]
[348652630,1736699446280,-1000.0,0.00010073,2]
[348652631,1736699446289,-811.37,0.00010073,2]
[348652632,1736699446298,-500.0,0.00010073,2]
[348652633,1736699446501,-2195.66,0.00010073,2]
[348652634,1736699446511,-1934.04,0.00010073,2]
[348652635,1736699446520,-500.0,0.00010095,2]
[348652636,1736699446530,-500.0,0.00010095,2]
[348652637,1736699446539,-500.0,0.00010095,2]
[348652638,1736699446548,-808.49,0.00010095,2]
[348652639,1736699446558,-900.33,0.00010095,2]
[348652640,1736699446567,-500.0,0.00010095,2]
[348652641,1736699446576,-500.0,0.00010135,2]
[348652642,1736699446585,-778.25,0.00010135,2]
[348652643,1736699446595,-585.78,0.00010135,2]
[348652644,1736699446604,-408.54,0.00010137,2]
[348652645,1736699446614,-1657.88700681,0.00010141,2]
[348652646,1736699446623,-7890.42554031,0.00010162,4]
[348652647,1736699446633,-6721.22646618,0.00010162,4]
[348652648,1736699446642,-13150.70923384,0.00010162,4]
[348652649,1736699446651,-5000.0,0.00010246,2]
[348652650,1736699446662,-1657.88700681,0.00010252,2]
[348652651,1736699446672,-500.0,0.00010271,2]
[348652652,1736699446682,-1774.74,0.00010271,2]
[348652653,1736699446697,-2625.24,0.00010271,2]
[348652654,1736699446706,-1727.74,0.00010271,2]
[348652655,1736699446716,-500.0,0.00010271,2]
[348652656,1736699446726,-1077.0,0.00010271,2]